bitfinex/quotes_ETHUSD_20241130
["timestamp","ask_amount","ask_price","bid_price","bid_amount"]
[1732964829246,8.98,3655.7,3655.3,2.7357]
[1732964829573,8.98,3655.7,3655.1,0.55558595]
[1732964829751,8.98,3655.7,3655.3,2.73572]
[1732964829752,0.03419553,3655.6,3655.3,2.73572]
[1732964829954,0.03419553,3655.6,3655.3,2.73574]
[1732964830964,8.98,3655.7,3655.3,2.73574]
[1732964831131,0.03419657,3655.6,3655.3,2.73574]
[1732964831328,0.03419657,3655.6,3655.1,3.73177405]
[1732964831640,0.03419657,3655.6,3655.2,2.7358]
[1732964831840,0.03419657,3655.6,3655.2,2.73577]
[1732964833077,8.98,3655.5,3655.0,2.73597]
[1732964833386,8.98,3655.5,3655.2,2.73582]
[1732964833535,8.98,3655.5,3655.0,2.73596]
[1732964833875,8.98,3655.5,3654.9,2.10807458]
[1732964833876,10.6331,3655.5,3655.1,3.22029346]
[1732964834377,10.6331,3655.5,3655.2,2.73582]
[1732964835482,0.03419793,3655.4,3655.0,2.73597]
[1732964835661,0.03419793,3655.4,3654.8,2.73612]
[1732964835662,0.55,3655.3,3654.8,2.73612]
[1732964835844,0.03419793,3655.4,3654.5,4.84436458]
[1732964835845,0.55,3655.4,3654.5,2.10807458]
[1732964836041,0.55,3655.2,3654.9,2.73603]
[1732964836475,0.55,3655.2,3654.7,2.73613]
[1732964836773,0.55,3655.2,3654.6,0.51080746]
[1732964836774,0.55,3655.2,3654.8,2.73611]
[1732964836986,8.98,3655.3,3654.9,2.10807458]
[1732964837147,8.98,3655.3,3655.2,2.73582]
[1732964837356,8.98,3655.3,3655.2,3.49380646]
[1732964837862,1.6531,3656.0,3655.2,6.49380646]
[1732964838041,8.98,3656.0,3655.9,4.84337458]
[1732964842113,8.98,3656.3,3656.0,3.0]
[1732964842298,8.98,3656.3,3656.1,2.73509]
[1732964842500,8.98,3656.3,3656.0,3.0]
[1732964842702,0.03419042,3656.2,3656.0,3.0]
[1732964843058,0.03419042,3656.2,3655.6,2.73551]
[1732964843271,0.55,3656.1,3655.8,2.73531]
[1732964843475,0.03419186,3656.0,3655.8,2.73531]
[1732964843685,0.55,3656.2,3655.8,2.73531]
[1732964843867,0.55,3656.2,3655.7,3.0]
[1732964844049,0.55,3656.2,3655.9,2.73525]
[1732964844499,0.55,3656.2,3655.8,3.0]
[1732964844655,0.55,3656.0,3655.8,5.73537]
[1732964845295,0.55,3656.0,3655.8,2.73537]
[1732964845493,0.55,3656.0,3655.9,2.7353]
[1732964846458,8.98,3656.3,3656.2,2.73508]
[1732964847607,8.98,3656.3,3655.9,0.547071]
[1732964847795,8.98,3656.3,3656.1,2.73513]
[1732964847965,9.01418968,3656.2,3656.1,2.73513]
[1732964848164,8.98,3656.2,3656.1,2.73513]
[1732964849406,0.55,3656.1,3655.9,2.73523]
[1732964849560,8.98,3656.2,3656.0,2.73522]
[1732964849899,0.55,3656.1,3655.6,5.73546]
[1732964850099,0.58419375,3656.1,3655.6,5.73546]
[1732964850406,1.5431,3656.0,3655.8,3.0]
[1732964850567,8.98,3655.9,3655.8,5.73532]
[1732964853310,8.98,3655.9,3655.8,6.79320646]
[1732964854002,8.98,3656.5,3655.8,8.31900646]
[1732964854207,8.98,3656.7,3656.0,2.73515]
[1732964854415,1.5221,3656.6,3656.0,2.73515]
[1732964854737,0.55,3656.5,3656.0,2.73521]
[1732964855246,0.55,3656.5,3656.0,2.73522]
[1732964855393,0.55,3656.5,3655.9,2.7353]
[1732964855588,0.55,3656.5,3656.0,2.73522]
[1732964855799,0.55,3656.5,3656.2,2.73506]
[1732964856190,0.55,3656.5,3656.3,2.73496]
[1732964856602,0.55,3656.5,3656.4,2.73493]
[1732964856830,8.98,3656.7,3656.4,2.73493]
[1732964857015,8.98,3656.7,3656.6,2.73478]
[1732964857195,8.98,3656.7,3656.4,2.73493]
[1732964857391,8.98,3656.7,3655.9,4.31319323]
[1732964857638,8.98,3656.7,3656.6,2.73478]
[1732964858554,9.53,3656.8,3656.5,5.73483]
[1732964858896,9.53,3656.8,3656.6,2.73475]
[1732964859333,9.53,3656.8,3656.7,2.7347]
[1732964860317,8.98,3656.8,3656.7,2.7347]
[1732964860499,8.98,3656.8,3656.7,3.581653]
[1732964862606,8.98,3656.8,3656.7,0.846953]
[1732964862918,8.98,3656.8,3656.5,2.73485]
[1732964863128,8.98,3657.0,3656.6,5.73476]
[1732964863444,0.55,3656.7,3656.1,2.7351]
[1732964863620,0.03418833,3656.6,3656.2,2.73502]
[1732964863951,0.55,3656.5,3656.0,3.16649932]
[1732964864245,0.55,3656.6,3656.1,3.5458308]
[1732964864434,2.73464,3656.8,3656.1,3.5458308]
[1732964864807,0.55,3656.5,3656.0,3.0]
[1732964865124,0.55,3656.3,3655.8,2.73537]
[1732964865925,0.55,3656.5,3655.8,2.73537]
[1732964866649,0.55,3656.5,3656.0,2.73521]
[1732964867345,0.55,3656.5,3655.8,2.73537]
[1732964867553,0.55,3656.5,3655.7,2.10807458]
[1732964867727,0.55,3656.5,3655.7,5.94773295]
[1732964868047,0.55,3656.5,3655.9,2.73528]
[1732964868605,1.6523,3656.4,3655.9,2.73528]
[1732964868811,0.55,3656.3,3655.8,2.73535]
[1732964869124,8.98,3656.2,3655.9,2.73528]
[1732964869842,8.98,3656.2,3655.8,2.73537]
[1732964870167,8.98,3656.2,3655.9,2.73528]
[1732964870683,8.98,3656.2,3655.8,0.28191811]
[1732964870967,8.98,3656.2,3655.8,3.01728811]
[1732964871279,8.98,3656.2,3655.9,2.73529]
[1732964871971,8.98,3656.2,3656.1,2.73515]
[1732964872121,8.98,3656.3,3656.2,2.73508]
[1732964872542,8.98,3656.3,3656.2,6.282117]
[1732964875126,8.98,3656.6,3656.3,2.73498]
[1732964876867,8.98,3656.6,3656.4,2.73491]
[1732964877453,8.98,3656.6,3656.2,6.282057]
[1732964877638,8.98,3656.6,3656.3,2.73498]
[1732964878050,0.55,3656.8,3656.3,2.73498]
[1732964878669,0.55,3656.8,3656.3,4.01041416]
[1732964881181,8.98,3656.7,3656.3,4.01041416]
[1732964881377,0.03418731,3656.6,3656.3,4.01041416]
[1732964881594,0.03418731,3656.6,3656.3,1.27543416]
[1732964881790,0.03418731,3656.6,3656.2,6.282077]
[1732964882093,0.03418731,3656.6,3656.2,0.547037]
[1732964882297,4.92546,3656.5,3655.8,2.73534]
[1732964882802,8.98,3655.8,3655.5,2.73554]
[1732964883155,0.55,3655.7,3654.9,2.10807458]
[1732964883503,0.55,3655.7,3655.1,2.73588]
[1732964883700,0.55,3655.5,3655.1,2.73588]
[1732964883850,8.98,3655.6,3655.1,2.73588]
[1732964883851,8.98,3655.6,3655.3,2.73569]
[1732964884058,8.98,3655.6,3654.8,1.6291]
[1732964884059,0.55,3655.5,3654.8,1.6291]
[1732964884257,0.03419972,3655.4,3654.9,2.95464508]
[1732964884455,3.2856,3655.5,3654.9,2.95464508]
[1732964884670,3.31979973,3655.5,3654.9,2.95464508]
[1732964884883,0.55,3655.5,3655.0,3.0]
[1732964885279,0.55,3655.5,3655.2,3.0]
[1732964885919,8.98,3655.6,3655.3,2.73573]
[1732964886714,8.98,3655.6,3655.5,2.7356]
[1732964886917,8.98,3655.6,3655.5,4.3647]
[1732964887082,8.98,3656.2,3655.8,2.73532]
[1732964887287,0.03419163,3656.1,3655.8,2.73532]
[1732964888120,0.03419163,3656.1,3655.6,2.73549]
[1732964888420,0.55,3656.0,3655.5,2.73559]
[1732964888719,0.03419431,3655.9,3655.5,2.73559]
[1732964888921,0.03419431,3655.9,3655.6,2.73552]
[1732964889671,0.55,3656.1,3655.6,2.73552]
[1732964889973,0.55,3655.9,3655.4,3.0]
[1732964890174,0.55,3655.9,3655.4,2.73566]
[1732964890175,1.67479538,3655.8,3655.4,2.73566]
[1732964891089,0.55,3655.7,3655.4,2.73566]
[1732964891290,2.1906,3655.8,3655.7,2.73545]
[1732964892358,2.1885,3656.1,3655.7,2.73545]
[1732964892501,2.1885,3656.1,3655.6,3.0]
[1732964893097,8.98,3656.0,3655.6,0.573559]
[1732964893349,8.98,3656.0,3655.8,2.73537]
[1732964893498,8.98,3656.0,3655.6,5.73551]
[1732964893704,8.98,3656.0,3655.5,3.0]
[1732964894251,1.6385,3655.9,3655.2,7.84388458]
[1732964894545,1.6385,3655.9,3655.2,5.10807458]
[1732964894741,8.98,3656.0,3655.6,2.73552]
[1732964894742,0.03419668,3655.8,3655.6,2.73552]
[1732964894949,0.0341938,3655.9,3655.4,5.73561]
[1732964895097,0.0341938,3655.9,3655.5,2.73559]
[1732964895444,0.55,3655.9,3655.5,2.73559]
[1732964896036,0.55,3655.9,3655.4,3.0]
[1732964896329,8.98,3655.8,3655.4,3.0]
[1732964896658,8.98,3655.8,3655.4,5.73567]
[1732964897338,0.55,3655.7,3655.4,5.73567]
[1732964897508,0.55,3655.7,3655.2,3.0]
[1732964897701,8.98,3655.6,3655.2,2.73581]
[1732964898607,8.98,3655.6,3655.1,2.73587]
[1732964898933,8.98,3655.2,3654.5,2.7363]
[1732964899101,0.55,3655.1,3654.7,2.73618]
[1732964899303,8.98,3655.2,3654.9,2.736]
[1732964899655,10.6185,3655.7,3655.6,2.73552]
[1732964899859,8.98,3655.7,3655.6,2.73552]
[1732964901348,8.98,3655.7,3655.6,3.282639]
[1732964901551,8.98,3655.7,3655.6,7.882139]
[1732964901755,8.98,3656.4,3656.3,2.735]
[1732964903062,8.98,3656.4,3656.3,5.735]
[1732964904576,8.98,3656.4,3656.3,2.735]
[1732964904733,1.6385,3656.3,3655.9,2.73528]
[1732964904943,0.03419102,3656.2,3655.9,2.73528]
[1732964905141,8.98,3656.1,3655.9,2.73528]
[1732964905466,8.98,3656.1,3655.9,2.73525]
[1732964905836,8.98,3656.1,3656.0,2.73522]
[1732964908132,8.98,3656.2,3656.0,2.73522]
[1732964908534,8.98,3656.2,3655.8,2.73537]
[1732964908769,8.98,3656.2,3655.9,2.73524]
[1732964908982,0.58419135,3656.1,3655.6,4.33498]
[1732964909185,0.58419135,3656.1,3655.6,2.73548]
[1732964909485,0.58419135,3656.1,3655.7,2.73542]
[1732964909651,0.55,3656.1,3655.6,2.73548]
[1732964909978,0.03419311,3656.0,3655.6,2.73548]
[1732964910274,8.98,3655.9,3655.7,2.73543]
[1732964910461,8.98,3655.9,3655.8,4.33487]
[1732964911277,8.98,3655.9,3655.8,6.44294458]
[1732964912052,8.98,3655.9,3655.8,9.44294458]
[1732964912443,8.98,3655.9,3655.8,7.33487]
[1732964913944,8.98,3656.9,3655.8,4.5995]
[1732964914252,8.98,3656.9,3656.7,2.73465]
[1732964915495,8.98,3656.9,3656.8,2.73463]
[1732964915665,8.98,3656.9,3656.7,2.7347]
[1732964916052,8.98,3656.9,3656.8,2.73463]
[1732964917053,8.98,3657.2,3657.1,2.7344]
[1732964917449,8.98,3657.2,3657.0,2.73443]
[1732964918487,8.98,3657.2,3657.1,2.7344]
[1732964918897,8.98,3657.2,3656.9,2.73449]
[1732964919067,10.5163,3657.2,3656.9,2.73449]
[1732964919450,10.5163,3657.2,3656.9,2.73451]
[1732964920191,8.98,3657.1,3656.9,2.73451]
[1732964920491,8.98,3657.1,3656.6,2.73471]
[1732964920712,8.98,3657.1,3656.8,2.73462]
[1732964921251,8.98,3657.1,3657.0,2.73448]
[1732964922250,8.98,3657.5,3657.1,2.73439]
[1732964922483,8.98,3657.5,3656.9,2.73455]
[1732964922802,8.98,3657.5,3656.8,0.546933]
[1732964922803,8.98,3657.5,3657.0,2.73443]
[1732964923090,8.98,3657.5,3657.1,2.73439]
[1732964923566,8.98,3657.5,3656.8,6.281543]
[1732964923771,8.98,3657.5,3657.0,2.73447]
[1732964923970,4.27054,3657.4,3656.5,2.73485]
[1732964924169,4.27054,3657.4,3656.8,2.73462]
[1732964924372,1.5363,3657.4,3656.4,4.6269]
[1732964924584,1.5363,3657.4,3656.9,2.73449]
[1732964925598,1.5363,3657.4,3656.7,2.73464]
[1732964926131,8.98,3657.3,3656.7,2.73464]
[1732964926257,8.98,3657.3,3657.0,2.73442]
[1732964927695,8.98,3657.3,3657.2,2.73433]
[1732964929307,1.5363,3657.6,3657.3,2.73423]
[1732964929973,1.5363,3657.6,3657.2,2.73432]
[1732964930371,1.5363,3657.6,3657.4,2.73417]
[1732964930759,1.5363,3657.6,3656.8,4.36153]
[1732964931102,8.98,3657.6,3657.5,2.7341]
[1732964932656,8.98,3657.6,3657.3,2.73424]
[1732964932862,1.6002,3657.5,3657.0,2.73448]
[1732964933289,1.6002,3657.5,3657.2,2.73431]
[1732964933744,2.73419,3657.4,3656.8,5.73461]
[1732964933916,1.6002,3657.5,3656.9,2.73448]
[1732964934419,8.98,3657.4,3656.8,2.7346]
[1732964934622,8.98,3657.4,3656.7,3.74277458]
[1732964934912,1.6002,3657.3,3656.8,2.73458]
[1732964935154,1.6002,3657.3,3656.9,2.73454]
[1732964936227,1.6002,3657.3,3656.3,2.10807458]
[1732964936435,1.6002,3657.3,3656.7,2.73465]
[1732964936852,1.63438305,3657.3,3656.7,2.73465]
[1732964937044,1.6002,3657.3,3656.7,2.73465]
[1732964937871,1.6002,3657.3,3656.4,2.73493]
[1732964938070,1.6002,3657.3,3656.6,2.73476]
[1732964938285,8.98,3657.2,3656.6,2.73476]
[1732964938572,8.98,3657.2,3656.3,2.10807458]
[1732964938726,8.98,3657.2,3656.7,2.73469]
[1732964939385,0.03418265,3657.1,3656.7,2.73469]
[1732964939670,1.6596,3657.0,3656.3,2.735]
[1732964939969,8.98,3656.9,3655.9,2.73528]
[1732964940141,8.98,3656.9,3656.1,2.73509]
[1732964940474,11.71462,3656.9,3655.9,2.73528]
[1732964940779,11.71462,3656.9,3656.1,2.73515]
[1732964941431,11.71459,3656.9,3656.1,2.73514]
[1732964941673,8.98,3656.9,3656.4,2.7349]
[1732964941870,8.98,3656.9,3656.2,2.73507]
[1732964942076,8.98,3656.9,3656.1,0.64065146]
[1732964942077,8.98,3656.9,3656.5,2.73484]
[1732964942376,8.98,3656.9,3656.1,0.64065146]
[1732964942664,8.98,3656.9,3656.5,2.73485]
[1732964942879,8.98,3656.9,3656.3,2.73496]
[1732964943028,1.6596,3656.4,3655.8,2.73536]
[1732964943229,1.6596,3656.4,3656.2,2.73502]
[1732964943559,1.6596,3656.4,3656.3,2.735]
[1732964943758,10.317397,3656.9,3655.5,6.40694458]
[1732964943759,1.6596,3656.8,3656.1,1.5633]
[1732964943985,10.6396,3656.8,3656.7,2.7347]
[1732964944557,8.98,3656.8,3656.7,2.7347]
[1732964945136,8.98,3656.6,3655.7,2.10807458]
[1732964945436,8.98,3656.6,3656.2,2.73505]
[1732964945437,1.6596,3656.5,3656.2,2.73505]
[1732964945783,1.6596,3656.5,3655.7,2.10807458]
[1732964945965,1.6596,3656.5,3655.9,2.7353]
[1732964946170,1.6596,3656.5,3656.1,2.73509]
[1732964946340,1.6596,3656.5,3656.1,2.73508]
[1732964946680,1.6596,3656.4,3655.3,2.10807458]
[1732964946838,2.73498,3656.4,3655.6,2.73545]
[1732964947040,1.6596,3656.3,3655.4,2.73565]
[1732964947272,2.73529,3656.0,3655.2,2.73581]
[1732964947434,1.6596,3655.7,3655.2,2.73581]
[1732964947635,1.6596,3655.7,3655.3,2.73573]
[1732964947878,1.6596,3655.7,3654.9,2.10807458]
[1732964947879,8.98,3655.5,3654.5,3.20278458]
[1732964948046,0.03419869,3655.4,3654.8,2.73611]
[1732964948247,1.6596,3655.1,3654.6,2.73627]
[1732964948463,8.98,3655.0,3654.7,2.73617]
[1732964948874,1.6596,3654.9,3654.2,0.75998995]
[1732964949035,1.6596,3654.9,3654.4,2.73637]
[1732964949394,1.6596,3654.7,3654.0,3.831514]
[1732964949679,1.6596,3654.7,3654.3,2.73647]
[1732964950071,8.98,3655.6,3654.6,1.5633]
[1732964950240,1.6596,3656.8,3655.8,2.73537]
[1732964950440,9.47368802,3656.7,3656.3,2.73493]
[1732964950690,9.47368802,3656.7,3655.8,2.10807458]
[1732964950839,9.47368802,3656.7,3656.1,2.73509]
[1732964950840,0.0341888,3656.6,3656.1,2.73509]
[1732964951040,9.47368802,3656.7,3656.1,2.73514]
[1732964951243,1.69378993,3656.6,3655.8,2.10807458]
[1732964951440,2.73493,3656.4,3655.8,2.10807458]
[1732964951877,1.5957,3656.1,3655.4,2.10807458]
[1732964952179,2.73527,3656.0,3655.2,2.73582]
[1732964952370,11.71508,3656.2,3655.0,2.73597]
[1732964952371,1.5957,3655.8,3655.0,2.73597]
[1732964952586,1.5957,3655.8,3654.9,2.10807458]
[1732964952587,10.5757,3655.6,3654.9,2.10807458]
[1732964952788,8.98,3655.4,3654.9,2.73605]
[1732964952983,0.03419862,3655.3,3654.9,2.73605]
[1732964953186,1.5957,3655.1,3654.9,2.73605]
[1732964953772,1.5957,3655.1,3654.5,2.10807458]
[1732964953773,1.5957,3655.1,3655.0,2.73597]
[1732964954076,1.5957,3655.1,3654.5,2.10807458]
[1732964954295,1.5957,3655.1,3654.5,4.84441458]
[1732964954503,4.82530802,3655.1,3654.3,3.0]
[1732964954655,4.82530802,3655.1,3654.4,2.73637]
[1732964954854,3.22960802,3655.1,3654.4,2.73637]
[1732964955083,2.73611,3654.9,3654.1,2.10807458]
[1732964955278,13.31189,3654.8,3654.1,2.10807458]
[1732964955483,8.98,3654.6,3654.1,4.84471458]
[1732964955710,4.36626806,3654.5,3653.8,2.73686]
[1732964956167,4.36626806,3654.5,3653.7,2.10807458]
[1732964956372,1.5957,3654.5,3653.7,2.10807458]
[1732964956574,1.5957,3654.1,3653.1,5.25177751]
[1732964956773,1.5957,3654.1,3653.2,2.73732]
[1732964957259,1.5957,3654.1,3653.5,2.73707]
[1732964957674,1.5957,3654.0,3653.3,2.73723]
[1732964957900,1.5957,3654.0,3653.5,2.73709]
[1732964958404,1.5957,3654.0,3653.4,2.73714]
[1732964958709,1.5957,3654.0,3653.3,2.73725]
[1732964958903,1.5957,3654.0,3653.4,2.73716]
[1732964959196,1.5957,3653.6,3653.1,2.22865539]
[1732964959402,1.5957,3653.6,3653.2,2.73732]
[1732964959903,2.84117615,3653.6,3653.1,2.85796081]
[1732964960121,1.5189,3653.5,3653.1,2.85796081]
[1732964960628,1.5189,3653.5,3653.1,2.85791081]
[1732964961501,1.5189,3653.5,3653.1,0.12058081]
[1732964963018,1.5189,3653.5,3653.2,2.73732]
[1732964963187,1.5189,3653.5,3653.1,0.12058081]
[1732964963594,1.5189,3653.5,3653.1,2.85795081]
[1732964964209,1.5189,3653.5,3653.1,0.12058081]
[1732964964906,1.5189,3653.5,3653.1,2.85792081]
[1732964965299,8.98,3653.4,3653.1,0.12058081]
[1732964965495,8.98,3653.4,3653.3,2.73725]
[1732964967327,8.98,3653.4,3653.3,3.66200054]
[1732964967558,8.98,3653.4,3653.3,6.66200054]
[1732964968119,8.98,3654.4,3653.3,3.92475054]
[1732964968320,8.98,3654.4,3654.1,2.73657]
[1732964968671,0.03420783,3654.3,3654.1,2.73657]
[1732964968817,0.03420783,3654.3,3653.9,2.73676]
[1732964969017,8.98,3654.4,3654.2,2.73657]
[1732964969261,8.98,3654.4,3654.3,2.7365]
[1732964972441,8.98,3654.4,3654.3,3.49462246]
[1732964972627,8.98,3654.4,3654.3,8.07032246]
[1732964973629,8.98,3654.4,3654.3,5.7365]
[1732964977181,8.98,3655.0,3654.3,3.0]
[1732964977484,8.98,3655.0,3654.9,2.73605]
[1732964979374,8.98,3655.4,3655.3,2.73575]
[1732964980187,8.98,3655.4,3655.3,5.73575]
[1732964981257,8.98,3655.4,3655.3,7.31145]
[1732964981792,8.98,3655.4,3655.3,8.52698646]
[1732964982149,8.98,3656.4,3656.2,2.73505]
[1732964982493,8.98,3656.4,3656.1,3.0]
[1732964982697,8.98,3656.4,3655.9,2.10807458]
[1732964982991,0.03418882,3656.3,3655.8,2.73536]
[1732964983198,1.08800882,3656.3,3655.8,2.73536]
[1732964983400,1.5582,3656.2,3654.9,1.5757]
[1732964983603,9.0141944,3656.1,3655.1,2.10807458]
[1732964983749,0.03419588,3656.0,3655.4,2.73561]
[1732964984089,1.05723959,3655.9,3655.3,2.73573]
[1732964984251,1.05723959,3655.9,3655.5,2.73554]
[1732964984448,0.03419522,3655.8,3655.3,2.73573]
[1732964984899,1.5582,3655.7,3655.2,3.0]
[1732964985102,9.01419648,3655.6,3655.1,2.73589]
[1732964985249,1.30498436,3655.5,3655.1,2.73589]
[1732964985455,8.98,3655.3,3655.1,2.73589]
[1732964985654,8.98,3655.3,3655.0,3.0]
[1732964985893,8.98,3655.3,3655.0,2.73591]
[1732964986061,8.98,3655.3,3654.7,2.10807458]
[1732964986392,8.98,3655.3,3655.1,2.73588]
[1732964986595,8.98,3655.3,3654.7,2.10807458]
[1732964986596,8.98,3655.3,3655.2,2.73582]
[1732964987055,8.98,3655.3,3655.0,2.73592]
[1732964987754,10.00849844,3655.3,3654.9,3.0]
[1732964987995,1.5582,3655.2,3654.9,3.0]
[1732964988180,1.5582,3655.2,3654.8,2.7361]
[1732964989265,8.98,3655.1,3654.8,2.7361]
[1732964989896,10.31372551,3655.1,3654.7,5.10807458]
[1732964990102,9.014202,3655.0,3654.4,2.73638]
[1732964990303,8.98,3655.0,3654.3,4.84449458]
[1732964990464,8.98,3655.0,3654.6,2.73626]
[1732964991061,8.98,3655.0,3654.7,2.73616]
[1732964991263,8.98,3655.0,3654.9,2.73605]
[1732964991713,8.98,3655.0,3654.8,2.73611]
[1732964992768,8.98,3655.1,3654.6,2.73627]
[1732964993166,8.98,3655.1,3654.8,2.73607]
[1732964993366,8.98,3655.1,3654.9,2.73604]
[1732964993567,8.98,3655.1,3655.0,2.73597]
[1732964994875,8.98,3655.1,3655.0,5.73597]
[1732964995101,8.98,3655.7,3655.3,2.73575]
[1732964995330,8.98,3655.7,3655.5,2.7356]
[1732964995467,8.98,3655.7,3655.3,2.73575]
[1732964996366,8.98,3655.7,3655.1,2.73589]
[1732964996573,8.98,3655.7,3655.4,2.73566]
[1732964997677,10.310842,3655.7,3655.1,2.73589]
[1732964997871,8.98,3655.7,3655.3,2.10807458]
[1732964998093,8.98,3655.7,3655.4,2.73562]
[1732964998308,8.98,3656.1,3655.4,2.73562]
[1732964998772,2.73583,3655.2,3654.6,2.73626]
[1732964998966,2.73583,3655.2,3653.5,2.73708]
[1732964998967,8.98,3655.0,3654.2,2.73651]
[1732964999166,0.03420286,3654.9,3654.4,2.73637]
[1732964999403,8.98,3655.0,3654.5,2.73629]
[1732964999916,0.03420326,3654.9,3654.5,2.73629]
[1732965000271,0.03420326,3654.9,3654.3,2.73649]
[1732965000473,8.98,3655.0,3654.5,2.73633]
[1732965000772,13.046925,3655.0,3654.4,2.73641]
[1732965000971,8.98,3654.9,3654.4,3.0]
[1732965001470,11.71606,3654.9,3654.4,3.0]
[1732965001671,2.73628,3654.6,3654.0,3.0]
[1732965001874,7.06551,3654.8,3654.0,5.73665]
[1732965002174,4.32932,3654.8,3654.1,3.0]
[1732965002518,5.36063895,3654.8,3654.1,3.0]
[1732965002718,2.73626,3654.7,3654.1,3.0]
[1732965003301,2.73628,3654.6,3654.1,3.0]
[1732965003497,2.73628,3654.6,3653.7,3.0]
[1732965003773,2.73635,3654.5,3653.9,4.84485458]
[1732965003974,2.77063802,3654.4,3653.9,2.10807458]
[1732965004209,8.98,3654.3,3653.9,2.10807458]
[1732965004535,0.03420804,3654.2,3653.7,2.73694]
[1732965004697,8.98,3654.3,3653.8,2.73686]
[1732965005015,8.98,3654.4,3653.9,2.73679]
[1732965005216,8.98,3654.4,3653.9,2.73674]
[1732965005422,8.98,3654.4,3654.0,2.73667]
[1732965005992,0.03420849,3654.3,3653.8,3.0]
[1732965006324,2.73658,3654.2,3653.5,2.10807458]
[1732965006524,1.62741139,3654.1,3653.5,2.10807458]
[1732965006684,8.98,3654.0,3653.2,2.73728]
[1732965006884,8.98,3653.8,3653.3,2.73724]
[1732965007097,0.03421303,3653.7,3653.3,2.73724]
[1732965007614,0.03421303,3653.7,3653.1,4.91886292]
[1732965007818,0.03421303,3653.7,3653.6,2.10807458]
[1732965007995,2.73605,3654.9,3654.2,2.73652]
[1732965008213,0.25265031,3654.8,3654.3,2.73649]
[1732965008533,2.98863199,3654.9,3654.2,2.10807458]
[1732965008683,8.98,3655.0,3654.2,4.84463458]
[1732965009025,1.61770235,3654.9,3654.2,4.84459458]
[1732965009193,4.10122778,3654.9,3654.2,4.84459458]
[1732965009528,4.067022,3654.9,3654.3,2.73648]
[1732965009680,8.98,3655.0,3654.2,2.10807458]
[1732965009890,8.98,3655.0,3654.8,2.73607]
[1732965010123,8.98,3655.0,3654.6,2.10807458]
[1732965010124,8.98,3655.0,3654.9,2.73605]
[1732965010282,8.98,3655.0,3654.7,2.73614]
[1732965010722,8.98,3655.0,3654.8,2.7361]
[1732965011995,8.98,3655.0,3654.6,6.35403458]
[1732965011996,9.878,3655.0,3654.6,2.73626]
[1732965012188,8.98,3655.0,3654.6,3.0]
[1732965012627,8.98,3655.0,3654.7,2.73619]
[1732965013446,8.98,3655.3,3654.8,2.73609]
[1732965014311,8.98,3655.3,3654.6,3.0]
[1732965014312,8.98,3655.3,3654.6,2.10807458]
[1732965014830,8.98,3655.3,3655.1,2.73587]
[1732965015703,8.98,3655.4,3655.0,3.0]
[1732965016028,2.73576,3655.3,3654.6,2.7362]
[1732965016395,10.03732,3655.4,3654.2,3.61777458]
[1732965016516,10.03732,3655.4,3655.0,2.73596]
[1732965016843,8.98,3655.4,3655.2,2.73576]
[1732965017047,8.98,3655.4,3655.0,2.73596]
[1732965017414,8.98,3655.4,3655.1,2.73589]
[1732965017632,8.98,3655.4,3654.9,3.0]
[1732965017802,1.05732,3655.3,3654.6,5.73621]
[1732965018301,8.98,3655.2,3654.5,3.0]
[1732965018514,8.98,3655.2,3654.7,2.73619]
[1732965018731,8.98,3655.2,3654.8,3.0]
[1732965019005,8.98,3655.2,3654.6,5.73627]
[1732965019309,10.28490395,3655.2,3654.6,5.73627]
[1732965019646,8.98,3655.1,3654.9,2.73603]
[1732965019996,8.98,3655.1,3655.0,2.73597]
[1732965020203,2.73619,3654.8,3654.1,2.73664]
[1732965020900,0.03420806,3654.7,3654.1,2.73664]
[1732965021096,2.73619,3654.8,3654.1,2.73664]
[1732965021296,1.44863881,3654.7,3654.1,2.73664]
[1732965021501,0.03420805,3654.6,3654.0,3.0]
[1732965021702,8.98,3654.3,3653.7,3.0]
[1732965021940,0.03420807,3654.2,3653.9,2.73674]
[1732965022124,0.03420807,3654.2,3654.0,3.0]
[1732965022327,0.03420807,3654.2,3653.8,5.73684]
[1732965022732,8.98,3654.3,3653.8,5.73684]
[1732965022954,0.03420972,3654.2,3653.5,3.0]
[1732965023098,2.73667,3654.1,3653.5,3.0]
[1732965023303,0.03421123,3654.0,3653.5,5.73708]
[1732965023546,2.77079123,3654.2,3653.5,5.73708]
[1732965023746,2.77079123,3654.2,3653.5,2.73708]
[1732965023918,4.21943004,3654.2,3653.5,2.73708]
[1732965024709,8.98,3654.1,3653.5,2.73708]
[1732965024906,0.03421124,3654.0,3653.5,2.73708]
[1732965025500,8.98,3653.9,3653.4,5.73713]
[1732965025700,0.03421341,3653.8,3653.4,5.73713]
[1732965025900,1.6624,3653.7,3653.2,2.73731]
[1732965026351,1.6624,3653.7,3653.1,0.07341834]
[1732965026352,0.03421368,3653.6,3653.1,0.07341834]
[1732965026516,8.98,3653.5,3653.1,2.81077834]
[1732965026714,8.98,3653.5,3653.2,3.0]
[1732965026919,8.98,3653.5,3653.4,2.73717]